[Event "Titled Tuesday Blitz December 13 Late 2022"]
[White "Kamsky, Gata"]
[Black "Van Dael, Siem"]
[WhiteFideId "2000024"]
[BlackFideId "1049771"]
[WhiteElo "2897"]
[BlackElo "2178"]
[Result "0-1"]
[Round "03"]
[TimeControl "180+1"]
[Date "2022.12.14"]
[WhiteClock "0:00:02"]
[BlackClock "0:00:12"]

1. e4 {[%clk 0:03:00]}  d5 {[%clk 0:02:57]} 2. exd5 {[%clk 0:02:58]}  Nf6 {[%clk 0:02:58]} 3. d4 {[%clk 0:02:57]}  Bg4 {[%clk 0:02:58]} 4. Be2 {[%clk 0:02:57]}  Bxe2 {[%clk 0:02:58]} 5. Qxe2 {[%clk 0:02:57]}  Qxd5 {[%clk 0:02:59]} 6. Nf3 {[%clk 0:02:57]}  e6 {[%clk 0:03:00]} 7. O-O {[%clk 0:02:56]}  Nc6 {[%clk 0:03:00]} 8. Rd1 {[%clk 0:02:55]}  O-O-O {[%clk 0:03:00]} 9. c4 {[%clk 0:02:55]}  Qh5 {[%clk 0:03:01]} 10. Nc3 {[%clk 0:02:52]}  Rg8 {[%clk 0:03:01]} 11. Be3 {[%clk 0:02:21]}  g5 {[%clk 0:03:01]} 12. g3 {[%clk 0:01:21]}  Bd6 {[%clk 0:02:26]} 13. Kg2 {[%clk 0:01:07]}  Ng4 {[%clk 0:01:56]} 14. h3 {[%clk 0:00:51]}  Nxe3+ {[%clk 0:01:49]} 15. Qxe3 {[%clk 0:00:51]}  g4 {[%clk 0:01:41]} 16. hxg4 {[%clk 0:00:50]}  Qxg4 {[%clk 0:01:40]} 17. Qe4 {[%clk 0:00:38]}  Qg7 {[%clk 0:01:32]} 18. Kf1 {[%clk 0:00:29]}  Kb8 {[%clk 0:01:17]} 19. Ne2 {[%clk 0:00:17]}  Rde8 {[%clk 0:01:06]} 20. c5 {[%clk 0:00:15]}  f5 {[%clk 0:00:59]} 21. Qe3 {[%clk 0:00:15]}  f4 {[%clk 0:00:57]} 22. Nxf4 {[%clk 0:00:14]}  Bxf4 {[%clk 0:00:56]} 23. Qxf4 {[%clk 0:00:14]}  Ref8 {[%clk 0:00:42]} 24. Qe4 {[%clk 0:00:14]}  Nb4 {[%clk 0:00:33]} 25. Rac1 {[%clk 0:00:08]}  Qf6 {[%clk 0:00:31]} 26. Rc3 {[%clk 0:00:08]}  h5 {[%clk 0:00:29]} 27. Rb3 {[%clk 0:00:07]}  Nd5 {[%clk 0:00:27]} 28. c6 {[%clk 0:00:07]}  b6 {[%clk 0:00:27]} 29. Ke2 {[%clk 0:00:06]}  Rg4 {[%clk 0:00:24]} 30. Qd3 {[%clk 0:00:04]}  Ne7 {[%clk 0:00:18]} 31. Rc1 {[%clk 0:00:02]}  e5 {[%clk 0:00:12]} 0-1


[Site "https://www.chess.com"]

[Event "Titled Tuesday Blitz December 13 Late 2022"]
[White "Khandelwal, Ankush"]
[Black "Romero Ruscalleda, Josep"]
[WhiteFideId "413470"]
[BlackFideId "2231859"]
[WhiteElo "2271"]
[BlackElo "2183"]
[Result "1-0"]
[Round "03"]
[TimeControl "180+1"]
[Date "2022.12.14"]
[WhiteClock "0:01:22"]
[BlackClock "0:01:04"]

1. e4 {[%clk 0:03:00]}  g6 {[%clk 0:03:00]} 2. d4 {[%clk 0:03:00]}  Bg7 {[%clk 0:03:01]} 3. Nc3 {[%clk 0:03:00]}  d6 {[%clk 0:03:01]} 4. Bf4 {[%clk 0:02:58]}  a6 {[%clk 0:03:01]} 5. Qd2 {[%clk 0:02:56]}  b5 {[%clk 0:03:01]} 6. Nf3 {[%clk 0:02:56]}  Bb7 {[%clk 0:03:00]} 7. a3 {[%clk 0:02:55]}  Nf6 {[%clk 0:02:59]} 8. Bd3 {[%clk 0:02:55]}  Nbd7 {[%clk 0:02:58]} 9. Bh6 {[%clk 0:02:55]}  Bxh6 {[%clk 0:02:51]} 10. Qxh6 {[%clk 0:02:56]}  e5 {[%clk 0:02:51]} 11. dxe5 {[%clk 0:02:51]}  Nxe5 {[%clk 0:02:50]} 12. Nxe5 {[%clk 0:02:50]}  dxe5 {[%clk 0:02:50]} 13. O-O-O {[%clk 0:02:44]}  Qe7 {[%clk 0:02:46]} 14. Be2 {[%clk 0:02:26]}  Rd8 {[%clk 0:02:17]} 15. Rxd8+ {[%clk 0:02:22]}  Kxd8 {[%clk 0:02:13]} 16. Qh3 {[%clk 0:02:15]}  Ne8 {[%clk 0:01:57]} 17. Rd1+ {[%clk 0:01:55]}  Nd6 {[%clk 0:01:57]} 18. a4 {[%clk 0:01:55]}  b4 {[%clk 0:01:49]} 19. Nd5 {[%clk 0:01:55]}  Bxd5 {[%clk 0:01:48]} 20. Rxd5 {[%clk 0:01:56]}  Qg5+ {[%clk 0:01:43]} 21. Kb1 {[%clk 0:01:54]}  Ke7 {[%clk 0:01:43]} 22. Bxa6 {[%clk 0:01:47]}  Ra8 {[%clk 0:01:34]} 23. Bf1 {[%clk 0:01:31]}  Rxa4 {[%clk 0:01:31]} 24. Qb3 {[%clk 0:01:31]}  Ra7 {[%clk 0:01:08]} 25. Qxb4 {[%clk 0:01:28]}  Qf4 {[%clk 0:01:08]} 26. Qc5 {[%clk 0:01:23]}  Qxe4 {[%clk 0:01:04]} 27. Rxe5+ {[%clk 0:01:22]} 1-0


[Site "https://www.chess.com"]

[Event "Titled Tuesday Blitz December 13 Late 2022"]
[White "Korchmar, Vasiliy"]
[Black "Deac, Bogdan-Daniel"]
[WhiteFideId "24131750"]
[BlackFideId "1226380"]
[WhiteElo "2370"]
[BlackElo "2649"]
[Result "0-1"]
[Round "03"]
[TimeControl "180+1"]
[Date "2022.12.13"]
[WhiteClock "0:00:06"]
[BlackClock "0:00:24"]

1. e4 {[%clk 0:03:00]}  c6 {[%clk 0:02:59]} 2. d4 {[%clk 0:03:00]}  d5 {[%clk 0:03:00]} 3. e5 {[%clk 0:03:01]}  Bf5 {[%clk 0:02:59]} 4. c4 {[%clk 0:03:01]}  e6 {[%clk 0:02:59]} 5. Nc3 {[%clk 0:03:02]}  Ne7 {[%clk 0:03:00]} 6. Nf3 {[%clk 0:03:01]}  Nd7 {[%clk 0:02:59]} 7. Be2 {[%clk 0:02:58]}  dxc4 {[%clk 0:02:58]} 8. Bxc4 {[%clk 0:02:59]}  Nd5 {[%clk 0:02:56]} 9. O-O {[%clk 0:02:59]}  Be7 {[%clk 0:02:56]} 10. Bd3 {[%clk 0:02:59]}  N7b6 {[%clk 0:02:54]} 11. Bxf5 {[%clk 0:02:52]}  exf5 {[%clk 0:02:54]} 12. Ne2 {[%clk 0:02:44]}  O-O {[%clk 0:02:53]} 13. Ng3 {[%clk 0:02:44]}  g6 {[%clk 0:02:53]} 14. Bh6 {[%clk 0:02:43]}  Re8 {[%clk 0:02:52]} 15. Rc1 {[%clk 0:02:41]}  Nc7 {[%clk 0:02:51]} 16. Qd2 {[%clk 0:02:32]}  Ne6 {[%clk 0:02:49]} 17. Rfd1 {[%clk 0:02:32]}  Nd5 {[%clk 0:02:49]} 18. a3 {[%clk 0:02:29]}  Qb6 {[%clk 0:02:45]} 19. h4 {[%clk 0:02:26]}  Rad8 {[%clk 0:02:43]} 20. Qc2 {[%clk 0:02:10]}  Bf8 {[%clk 0:02:34]} 21. Bxf8 {[%clk 0:01:51]}  Rxf8 {[%clk 0:02:31]} 22. h5 {[%clk 0:01:48]}  Qc7 {[%clk 0:02:24]} 23. h6 {[%clk 0:01:47]}  Qe7 {[%clk 0:02:19]} 24. b4 {[%clk 0:01:29]}  Ng5 {[%clk 0:02:03]} 25. Nd2 {[%clk 0:01:25]}  Ne6 {[%clk 0:01:59]} 26. Nf3 {[%clk 0:01:22]}  a6 {[%clk 0:01:57]} 27. Qb3 {[%clk 0:01:22]}  Rd7 {[%clk 0:01:52]} 28. Rd2 {[%clk 0:01:17]}  Rfd8 {[%clk 0:01:40]} 29. Rcd1 {[%clk 0:01:16]}  Qf8 {[%clk 0:01:40]} 30. Nh4 {[%clk 0:00:58]}  Qxh6 {[%clk 0:01:35]} 31. Nhxf5 {[%clk 0:00:58]}  gxf5 {[%clk 0:01:35]} 32. Nxf5 {[%clk 0:00:59]}  Qf4 {[%clk 0:01:36]} 33. Qh3 {[%clk 0:00:53]}  Ne7 {[%clk 0:01:24]} 34. Nd6 {[%clk 0:00:46]}  Rxd6 {[%clk 0:01:15]} 35. exd6 {[%clk 0:00:47]}  Qxd6 {[%clk 0:01:13]} 36. Rd3 {[%clk 0:00:44]}  Nf4 {[%clk 0:01:11]} 37. Qg4+ {[%clk 0:00:36]}  Neg6 {[%clk 0:01:10]} 38. Re3 {[%clk 0:00:29]}  Nd5 {[%clk 0:01:08]} 39. Rh3 {[%clk 0:00:27]}  Re8 {[%clk 0:01:00]} 40. Qh5 {[%clk 0:00:21]}  Nf6 {[%clk 0:00:55]} 41. Qg5 {[%clk 0:00:21]}  Qf4 {[%clk 0:00:51]} 42. Qc5 {[%clk 0:00:15]}  Qg4 {[%clk 0:00:48]} 43. Rdd3 {[%clk 0:00:10]}  Re1+ {[%clk 0:00:38]} 44. Kh2 {[%clk 0:00:10]}  Qe2 {[%clk 0:00:36]} 45. Rhf3 {[%clk 0:00:05]}  Qf1 {[%clk 0:00:26]} 46. Qd6 {[%clk 0:00:05]}  Qh1+ {[%clk 0:00:25]} 47. Kg3 {[%clk 0:00:06]}  Ne4+ {[%clk 0:00:24]} 0-1


[Site "https://www.chess.com"]

[Event "Titled Tuesday Blitz December 13 Late 2022"]
[White "Kravtsiv, Martyn"]
[Black "Andrews, Todd"]
[WhiteFideId "14113147"]
[BlackFideId "2012456"]
[WhiteElo "2695"]
[BlackElo "2360"]
[Result "1-0"]
[Round "03"]
[TimeControl "180+1"]
[Date "2022.12.13"]
[WhiteClock "0:02:00"]
[BlackClock "0:00:59"]

1. e4 {[%clk 0:03:00]}  e6 {[%clk 0:03:00]} 2. d4 {[%clk 0:03:00]}  d5 {[%clk 0:03:01]} 3. e5 {[%clk 0:03:00]}  c5 {[%clk 0:03:00]} 4. c3 {[%clk 0:03:00]}  cxd4 {[%clk 0:03:01]} 5. cxd4 {[%clk 0:03:00]}  Nc6 {[%clk 0:03:02]} 6. Nf3 {[%clk 0:02:59]}  f6 {[%clk 0:03:02]} 7. Bb5 {[%clk 0:02:51]}  Bd7 {[%clk 0:03:01]} 8. O-O {[%clk 0:02:49]}  Nh6 {[%clk 0:02:51]} 9. Re1 {[%clk 0:02:47]}  Nf7 {[%clk 0:02:49]} 10. Nc3 {[%clk 0:02:42]}  fxe5 {[%clk 0:02:31]} 11. dxe5 {[%clk 0:02:39]}  Bc5 {[%clk 0:02:28]} 12. Nxd5 {[%clk 0:02:28]}  exd5 {[%clk 0:02:27]} 13. e6 {[%clk 0:02:27]}  O-O {[%clk 0:02:23]} 14. exf7+ {[%clk 0:02:24]}  Rxf7 {[%clk 0:02:22]} 15. Qxd5 {[%clk 0:02:25]}  Qb6 {[%clk 0:02:16]} 16. Bc4 {[%clk 0:02:24]}  Bxf2+ {[%clk 0:01:57]} 17. Kh1 {[%clk 0:02:22]}  Rf8 {[%clk 0:01:44]} 18. Qxd7 {[%clk 0:02:20]}  Bxe1 {[%clk 0:01:42]} 19. Bxf7+ {[%clk 0:02:21]}  Rxf7 {[%clk 0:01:42]} 20. Qe8+ {[%clk 0:02:20]}  Rf8 {[%clk 0:01:42]} 21. Qxe1 {[%clk 0:02:21]}  Nb4 {[%clk 0:01:39]} 22. Qe4 {[%clk 0:02:12]}  a5 {[%clk 0:01:26]} 23. Be3 {[%clk 0:02:08]}  Qd6 {[%clk 0:01:16]} 24. Qc4+ {[%clk 0:02:08]}  Kh8 {[%clk 0:01:14]} 25. Bc5 {[%clk 0:02:08]}  Rc8 {[%clk 0:01:10]} 26. Bxd6 {[%clk 0:02:07]}  Rxc4 {[%clk 0:01:10]} 27. Bxb4 {[%clk 0:02:07]}  axb4 {[%clk 0:01:11]} 28. Kg1 {[%clk 0:02:03]}  Rc2 {[%clk 0:01:10]} 29. Rb1 {[%clk 0:02:03]}  Kg8 {[%clk 0:01:07]} 30. Ne5 {[%clk 0:02:02]}  Re2 {[%clk 0:01:05]} 31. Nd3 {[%clk 0:02:02]}  Re4 {[%clk 0:01:02]} 32. Kf2 {[%clk 0:02:01]}  Kf7 {[%clk 0:01:02]} 33. Kf3 {[%clk 0:02:00]}  Rd4 {[%clk 0:01:01]} 34. Ke3 {[%clk 0:02:00]}  Rh4 {[%clk 0:01:00]} 35. h3 {[%clk 0:01:59]}  h5 {[%clk 0:00:58]} 36. Rf1+ {[%clk 0:02:00]}  Ke6 {[%clk 0:00:59]} 37. Rf4 {[%clk 0:02:00]} 1-0


[Site "https://www.chess.com"]

[Event "Titled Tuesday Blitz December 13 Late 2022"]
[White "Lashkin, Jegor"]
[Black "Sargsyan, Anna M."]
[WhiteFideId "13907808"]
[BlackFideId "13308130"]
[WhiteElo "2846"]
[BlackElo "2625"]
[Result "1/2-1/2"]
[Round "03"]
[TimeControl "180+1"]
[Date "2022.12.14"]
[WhiteClock "0:00:03"]
[BlackClock "0:00:05"]

1. e4 {[%clk 0:02:59]}  e5 {[%clk 0:02:59]} 2. Nf3 {[%clk 0:02:59]}  Nc6 {[%clk 0:03:00]} 3. Bc4 {[%clk 0:02:59]}  Bc5 {[%clk 0:02:59]} 4. c3 {[%clk 0:02:59]}  Nf6 {[%clk 0:02:58]} 5. d3 {[%clk 0:03:00]}  d6 {[%clk 0:02:58]} 6. O-O {[%clk 0:02:59]}  O-O {[%clk 0:02:57]} 7. h3 {[%clk 0:02:58]}  h6 {[%clk 0:02:57]} 8. Re1 {[%clk 0:02:57]}  Be6 {[%clk 0:02:56]} 9. Bb5 {[%clk 0:02:54]}  Ne7 {[%clk 0:02:54]} 10. d4 {[%clk 0:02:54]}  exd4 {[%clk 0:02:54]} 11. cxd4 {[%clk 0:02:55]}  Bb4 {[%clk 0:02:54]} 12. Nc3 {[%clk 0:02:55]}  c6 {[%clk 0:02:50]} 13. Bd3 {[%clk 0:02:54]}  Re8 {[%clk 0:02:46]} 14. a3 {[%clk 0:02:53]}  Ba5 {[%clk 0:02:45]} 15. Bd2 {[%clk 0:02:44]}  Bc7 {[%clk 0:02:45]} 16. Qc2 {[%clk 0:02:43]}  Qd7 {[%clk 0:02:41]} 17. Re3 {[%clk 0:02:23]}  Ng6 {[%clk 0:02:25]} 18. d5 {[%clk 0:02:23]}  cxd5 {[%clk 0:02:16]} 19. Bb5 {[%clk 0:02:23]}  Qd8 {[%clk 0:02:01]} 20. exd5 {[%clk 0:02:18]}  Bd7 {[%clk 0:02:00]} 21. Bd3 {[%clk 0:01:57]}  Ne5 {[%clk 0:01:51]} 22. Nxe5 {[%clk 0:01:56]}  dxe5 {[%clk 0:01:52]} 23. Rae1 {[%clk 0:01:54]}  Rc8 {[%clk 0:01:48]} 24. Qb3 {[%clk 0:01:43]}  Bd6 {[%clk 0:01:31]} 25. Rf3 {[%clk 0:01:14]}  Qb6 {[%clk 0:01:16]} 26. Qxb6 {[%clk 0:00:37]}  axb6 {[%clk 0:01:17]} 27. Bf5 {[%clk 0:00:37]}  Rc4 {[%clk 0:00:57]} 28. Bxd7 {[%clk 0:00:32]}  Nxd7 {[%clk 0:00:58]} 29. Ne4 {[%clk 0:00:31]}  Bf8 {[%clk 0:00:57]} 30. Bc3 {[%clk 0:00:26]}  b5 {[%clk 0:00:51]} 31. Nd2 {[%clk 0:00:14]}  Rc5 {[%clk 0:00:45]} 32. Rd3 {[%clk 0:00:14]}  f6 {[%clk 0:00:43]} 33. g4 {[%clk 0:00:14]}  Nb6 {[%clk 0:00:38]} 34. d6 {[%clk 0:00:14]}  Rd8 {[%clk 0:00:39]} 35. Ne4 {[%clk 0:00:14]}  Rc6 {[%clk 0:00:37]} 36. Red1 {[%clk 0:00:14]}  Nc4 {[%clk 0:00:36]} 37. Rd5 {[%clk 0:00:07]}  b6 {[%clk 0:00:21]} 38. Rxb5 {[%clk 0:00:06]}  Nxd6 {[%clk 0:00:19]} 39. Rbd5 {[%clk 0:00:06]}  Kf7 {[%clk 0:00:15]} 40. Bb4 {[%clk 0:00:05]}  Ke6 {[%clk 0:00:15]} 41. Nc3 {[%clk 0:00:05]}  Be7 {[%clk 0:00:14]} 42. Kg2 {[%clk 0:00:04]}  Nf7 {[%clk 0:00:11]} 43. Rxd8 {[%clk 0:00:04]}  Bxd8 {[%clk 0:00:06]} 44. Re1 {[%clk 0:00:03]}  Be7 {[%clk 0:00:04]} 45. Bxe7 {[%clk 0:00:04]}  Kxe7 {[%clk 0:00:05]} 46. Re4 {[%clk 0:00:04]}  Kd6 {[%clk 0:00:05]} 47. Rb4 {[%clk 0:00:04]}  Ng5 {[%clk 0:00:06]} 48. h4 {[%clk 0:00:04]}  Ne6 {[%clk 0:00:05]} 49. Ne4+ {[%clk 0:00:04]}  Kc7 {[%clk 0:00:06]} 50. Ng3 {[%clk 0:00:05]}  Nd4 {[%clk 0:00:06]} 51. Nf5 {[%clk 0:00:04]}  Nxf5 {[%clk 0:00:05]} 52. gxf5 {[%clk 0:00:05]}  Kd6 {[%clk 0:00:05]} 53. Rg4 {[%clk 0:00:05]}  Rc7 {[%clk 0:00:05]} 54. Rb4 {[%clk 0:00:05]}  Kc5 {[%clk 0:00:06]} 55. Kf3 {[%clk 0:00:05]}  Rd7 {[%clk 0:00:06]} 56. Rg4 {[%clk 0:00:05]}  h5 {[%clk 0:00:05]} 57. Rb4 {[%clk 0:00:04]}  Rd3+ {[%clk 0:00:04]} 58. Ke2 {[%clk 0:00:04]}  Rh3 {[%clk 0:00:04]} 59. Re4 {[%clk 0:00:03]}  Rh2 {[%clk 0:00:04]} 60. Rb4 {[%clk 0:00:03]}  Rh1 {[%clk 0:00:04]} 61. Kf3 {[%clk 0:00:03]}  Re1 {[%clk 0:00:03]} 62. Kg2 {[%clk 0:00:03]}  Rd1 {[%clk 0:00:03]} 63. Rb3 {[%clk 0:00:03]}  Rd4 {[%clk 0:00:01]} 64. Kh3 {[%clk 0:00:03]}  Rf4 {[%clk 0:00:01]} 65. Rg3 {[%clk 0:00:03]}  Rxf5 {[%clk 0:00:02]} 66. Kg2 {[%clk 0:00:02]}  Rf4 {[%clk 0:00:02]} 67. Rxg7 {[%clk 0:00:02]}  Rxh4 {[%clk 0:00:03]} 68. Rf7 {[%clk 0:00:03]}  Rf4 {[%clk 0:00:02]} 69. Kg3 {[%clk 0:00:02]}  Kb5 {[%clk 0:00:03]} 70. Re7 {[%clk 0:00:03]}  h4+ {[%clk 0:00:03]} 71. Kg2 {[%clk 0:00:03]}  Ka4 {[%clk 0:00:03]} 72. Rb7 {[%clk 0:00:03]}  b5 {[%clk 0:00:03]} 73. Rb6 {[%clk 0:00:03]}  f5 {[%clk 0:00:03]} 74. Re6 {[%clk 0:00:03]}  e4 {[%clk 0:00:02]} 75. Re5 {[%clk 0:00:04]}  b4 {[%clk 0:00:02]} 76. axb4 {[%clk 0:00:03]}  Kxb4 {[%clk 0:00:03]} 77. Rd5 {[%clk 0:00:03]}  Rf3 {[%clk 0:00:03]} 78. Kg1 {[%clk 0:00:03]}  Kc4 {[%clk 0:00:03]} 79. Rd8 {[%clk 0:00:03]}  Kb3 {[%clk 0:00:03]} 80. Rb8+ {[%clk 0:00:03]}  Kc4 {[%clk 0:00:03]} 81. b4 {[%clk 0:00:04]}  Rb3 {[%clk 0:00:02]} 82. Rf8 {[%clk 0:00:04]}  Rxb4 {[%clk 0:00:03]} 83. Rxf5 {[%clk 0:00:03]}  Kd3 {[%clk 0:00:03]} 84. Rf4 {[%clk 0:00:02]}  h3 {[%clk 0:00:03]} 85. Kh2 {[%clk 0:00:02]}  Rb2 {[%clk 0:00:03]} 86. Kxh3 {[%clk 0:00:02]}  e3 {[%clk 0:00:04]} 87. fxe3 {[%clk 0:00:02]}  Kxe3 {[%clk 0:00:04]} 88. Rf8 {[%clk 0:00:03]}  Rf2 {[%clk 0:00:04]} 89. Rxf2 {[%clk 0:00:03]}  Kxf2 {[%clk 0:00:05]} 1/2-1/2


[Site "https://www.chess.com"]

[Event "Titled Tuesday Blitz December 13 Late 2022"]
[White "Martinez Alcantara, Jose Eduardo"]
[Black "Gasparyan, David"]
[WhiteFideId "3805662"]
[BlackFideId "13311980"]
[WhiteElo "2707"]
[BlackElo "2409"]
[Result "1-0"]
[Round "03"]
[TimeControl "180+1"]
[Date "2022.12.14"]
[WhiteClock "0:01:22"]
[BlackClock "0:00:21"]

1. e4 {[%clk 0:03:00]}  c5 {[%clk 0:02:59]} 2. Nf3 {[%clk 0:02:59]}  e6 {[%clk 0:02:59]} 3. c3 {[%clk 0:02:49]}  d5 {[%clk 0:02:59]} 4. exd5 {[%clk 0:02:47]}  Qxd5 {[%clk 0:03:00]} 5. d4 {[%clk 0:02:48]}  Nf6 {[%clk 0:02:59]} 6. Be3 {[%clk 0:02:47]}  cxd4 {[%clk 0:02:55]} 7. cxd4 {[%clk 0:02:48]}  Bb4+ {[%clk 0:02:51]} 8. Nc3 {[%clk 0:02:49]}  Nc6 {[%clk 0:02:51]} 9. Bd3 {[%clk 0:02:48]}  O-O {[%clk 0:02:50]} 10. O-O {[%clk 0:02:48]}  Qh5 {[%clk 0:02:48]} 11. h3 {[%clk 0:02:47]}  Nd5 {[%clk 0:02:47]} 12. Nxd5 {[%clk 0:02:43]}  exd5 {[%clk 0:02:44]} 13. Rc1 {[%clk 0:02:29]}  Bd6 {[%clk 0:02:36]} 14. a3 {[%clk 0:02:27]}  Bd7 {[%clk 0:02:32]} 15. b4 {[%clk 0:02:26]}  Rae8 {[%clk 0:02:30]} 16. b5 {[%clk 0:02:25]}  Nd8 {[%clk 0:02:29]} 17. Ne5 {[%clk 0:02:22]}  Qxd1 {[%clk 0:02:28]} 18. Rfxd1 {[%clk 0:02:23]}  Bxe5 {[%clk 0:02:27]} 19. dxe5 {[%clk 0:02:24]}  Rxe5 {[%clk 0:02:22]} 20. Bxa7 {[%clk 0:02:22]}  Ne6 {[%clk 0:02:19]} 21. Ra1 {[%clk 0:01:51]}  Rc8 {[%clk 0:02:09]} 22. a4 {[%clk 0:01:48]}  g6 {[%clk 0:02:02]} 23. Bf1 {[%clk 0:01:47]}  Nc5 {[%clk 0:01:41]} 24. a5 {[%clk 0:01:39]}  Ne4 {[%clk 0:01:38]} 25. a6 {[%clk 0:01:36]}  bxa6 {[%clk 0:01:37]} 26. bxa6 {[%clk 0:01:36]}  Nc3 {[%clk 0:01:34]} 27. Rdc1 {[%clk 0:01:36]}  Re6 {[%clk 0:01:21]} 28. Bd4 {[%clk 0:01:31]}  Ne2+ {[%clk 0:00:40]} 29. Bxe2 {[%clk 0:01:31]}  Rxc1+ {[%clk 0:00:41]} 30. Rxc1 {[%clk 0:01:32]}  Rxe2 {[%clk 0:00:41]} 31. a7 {[%clk 0:01:31]}  Re8 {[%clk 0:00:24]} 32. Rc7 {[%clk 0:01:28]}  Bb5 {[%clk 0:00:21]} 33. Rb7 {[%clk 0:01:22]}  Bc6 {[%clk 0:00:21]} 34. Rb8 {[%clk 0:01:22]}  Kf8 {[%clk 0:00:21]} 35. Bc5+ {[%clk 0:01:22]} 1-0


[Site "https://www.chess.com"]

[Event "Titled Tuesday Blitz December 13 Late 2022"]
[White "Mazurkiewicz, Michal"]
[Black "Kazakouski, Valery"]
[WhiteFideId "1124943"]
[BlackFideId "13507443"]
[WhiteElo "2474"]
[BlackElo "2770"]
[Result "0-1"]
[Round "03"]
[TimeControl "180+1"]
[Date "2022.12.14"]
[WhiteClock "0:00:01"]
[BlackClock "0:00:28"]

1. e4 {[%clk 0:03:00]}  e5 {[%clk 0:02:59]} 2. Nf3 {[%clk 0:03:01]}  Nc6 {[%clk 0:02:59]} 3. d3 {[%clk 0:03:01]}  d5 {[%clk 0:02:59]} 4. exd5 {[%clk 0:03:00]}  Qxd5 {[%clk 0:02:59]} 5. g3 {[%clk 0:03:01]}  Bg4 {[%clk 0:02:56]} 6. Bg2 {[%clk 0:02:59]}  e4 {[%clk 0:02:28]} 7. Qe2 {[%clk 0:02:57]}  Nf6 {[%clk 0:02:25]} 8. h3 {[%clk 0:02:52]}  Nd4 {[%clk 0:02:13]} 9. dxe4 {[%clk 0:01:46]}  Nxe4 {[%clk 0:02:13]} 10. Nc3 {[%clk 0:01:18]}  Bb4 {[%clk 0:02:12]} 11. Kf1 {[%clk 0:00:51]}  Bxc3 {[%clk 0:02:06]} 12. Qd3 {[%clk 0:00:42]}  Bxf3 {[%clk 0:00:52]} 13. Bxf3 {[%clk 0:00:41]}  Nxg3+ {[%clk 0:00:52]} 14. fxg3 {[%clk 0:00:40]}  Qxf3+ {[%clk 0:00:52]} 15. Qxf3 {[%clk 0:00:40]}  Nxf3 {[%clk 0:00:53]} 16. bxc3 {[%clk 0:00:39]}  O-O-O {[%clk 0:00:53]} 17. Bf4 {[%clk 0:00:21]}  Rhe8 {[%clk 0:00:51]} 18. Kg2 {[%clk 0:00:18]}  Nd2 {[%clk 0:00:51]} 19. Rhe1 {[%clk 0:00:18]}  Ne4 {[%clk 0:00:51]} 20. Re3 {[%clk 0:00:18]}  g5 {[%clk 0:00:50]} 21. Rae1 {[%clk 0:00:16]}  Rd2+ {[%clk 0:00:42]} 22. Kg1 {[%clk 0:00:10]}  gxf4 {[%clk 0:00:41]} 23. Rxe4 {[%clk 0:00:10]}  Rxe4 {[%clk 0:00:41]} 24. Rxe4 {[%clk 0:00:11]}  fxg3 {[%clk 0:00:42]} 25. Re7 {[%clk 0:00:11]}  Rh2 {[%clk 0:00:35]} 26. Rxf7 {[%clk 0:00:09]}  Rxh3 {[%clk 0:00:35]} 27. Kg2 {[%clk 0:00:05]}  Rh2+ {[%clk 0:00:36]} 28. Kxg3 {[%clk 0:00:05]}  Rxc2 {[%clk 0:00:36]} 29. Rf3 {[%clk 0:00:04]}  Rxa2 {[%clk 0:00:36]} 30. Kf4 {[%clk 0:00:05]}  Re2 {[%clk 0:00:34]} 31. Kf5 {[%clk 0:00:04]}  a5 {[%clk 0:00:33]} 32. Kf6 {[%clk 0:00:03]}  a4 {[%clk 0:00:32]} 33. c4 {[%clk 0:00:04]}  Rc2 {[%clk 0:00:29]} 34. Ke7 {[%clk 0:00:03]}  b6 {[%clk 0:00:28]} 35. c5 {[%clk 0:00:01]}  Rxc5 {[%clk 0:00:28]} 0-1


[Site "https://www.chess.com"]

[Event "Titled Tuesday Blitz December 13 Late 2022"]
[White "Naroditsky, Daniel"]
[Black "Vasquez Schroeder, Rodrigo"]
[WhiteFideId "2026961"]
[BlackFideId "3400042"]
[WhiteElo "2628"]
[BlackElo "2603"]
[Result "1-0"]
[Round "03"]
[TimeControl "180+1"]
[Date "2022.12.13"]
[WhiteClock "0:00:53"]
[BlackClock "0:00:54"]

1. e4 {[%clk 0:03:00]}  c6 {[%clk 0:02:55]} 2. d4 {[%clk 0:02:56]}  d5 {[%clk 0:02:56]} 3. e5 {[%clk 0:02:57]}  Bf5 {[%clk 0:02:55]} 4. Nd2 {[%clk 0:02:57]}  e6 {[%clk 0:02:55]} 5. Nb3 {[%clk 0:02:58]}  Nd7 {[%clk 0:02:54]} 6. Nf3 {[%clk 0:02:58]}  Ne7 {[%clk 0:02:54]} 7. Be2 {[%clk 0:02:57]}  Ng6 {[%clk 0:02:55]} 8. O-O {[%clk 0:02:56]}  f6 {[%clk 0:02:55]} 9. Re1 {[%clk 0:02:45]}  Bb4 {[%clk 0:02:42]} 10. c3 {[%clk 0:02:42]}  Be7 {[%clk 0:02:42]} 11. exf6 {[%clk 0:02:40]}  Bxf6 {[%clk 0:02:41]} 12. Bd3 {[%clk 0:02:06]}  Bxd3 {[%clk 0:02:39]} 13. Qxd3 {[%clk 0:02:06]}  Qe7 {[%clk 0:02:38]} 14. c4 {[%clk 0:01:46]}  Qd6 {[%clk 0:02:23]} 15. Qf5 {[%clk 0:01:30]}  Ngf8 {[%clk 0:02:05]} 16. Bf4 {[%clk 0:01:14]}  Qe7 {[%clk 0:02:04]} 17. Qc2 {[%clk 0:01:13]}  dxc4 {[%clk 0:01:58]} 18. Qxc4 {[%clk 0:01:12]}  Nb6 {[%clk 0:01:58]} 19. Qc2 {[%clk 0:01:11]}  Nd5 {[%clk 0:01:59]} 20. Bg3 {[%clk 0:01:11]}  Nd7 {[%clk 0:01:58]} 21. Re2 {[%clk 0:01:02]}  O-O {[%clk 0:01:56]} 22. Rae1 {[%clk 0:01:02]}  Rae8 {[%clk 0:01:56]} 23. Nbd2 {[%clk 0:00:56]}  N7b6 {[%clk 0:01:08]} 24. Ne4 {[%clk 0:00:55]}  Nc8 {[%clk 0:01:08]} 25. Nc5 {[%clk 0:00:55]}  Bxd4 {[%clk 0:00:54]} 26. Nxd4 {[%clk 0:00:53]} 1-0


[Site "https://www.chess.com"]